[Event "Masters Tournament (MTO)"]
[Site "Biel, Switzerland"]
[Date "2026.07.13"]
[Round "1.27"]
[White "Gireada, Daniel"]
[Black "Tkhoruk, Roman"]
[Result "1/2-1/2"]
[TimeControl "100+30+30sec/move"]
[WhiteTitle "-"]
[BlackTitle "-"]
[WhiteFideId "1206451"]
[BlackFideId "34161589"]
[WhiteElo "2255"]
[BlackElo "1967"]

1. d4 {[%clk 01:40:56]} Nf6 {[%clk 01:40:51]} {[%emt 00:00:10]} 2. c4 {[%clk
01:41:16]} {[%emt 00:00:10]} e6 {[%clk 01:41:12]} {[%emt 00:00:09]} 3. Nf3
{[%clk 01:41:25]} {[%emt 00:00:21]} Bb4+ {[%clk 01:41:25]} {[%emt 00:00:17]} 4.
Bd2 {[%clk 01:41:12]} {[%emt 00:00:43]} Bxd2+ {[%clk 01:41:37]} {[%emt
00:00:18]} 5. Qxd2 {[%clk 01:41:19]} {[%emt 00:00:22]} d5 {[%clk 01:41:49]}
{[%emt 00:00:18]} 6. Nc3 {[%clk 01:40:53]} {[%emt 00:00:56]} O-O {[%clk
01:41:40]} {[%emt 00:00:39]} 7. e3 {[%clk 01:35:22]} {[%emt 00:06:01]} b6
{[%clk 01:41:17]} {[%emt 00:00:54]} 8. cxd5 {[%clk 01:34:22]} {[%emt 00:01:30]}
exd5 {[%clk 01:41:19]} {[%emt 00:00:28]} 9. Bd3 {[%clk 01:34:02]} {[%emt
00:00:49]} c5 {[%clk 01:40:47]} {[%emt 00:01:02]} 10. Rc1 {[%clk 01:32:37]}
{[%emt 00:01:55]} Ba6 {[%clk 01:38:48]} {[%emt 00:02:29]} 11. O-O {[%clk
01:29:22]} {[%emt 00:03:45]} Bxd3 {[%clk 01:38:33]} {[%emt 00:00:46]} 12. Qxd3
{[%clk 01:29:40]} {[%emt 00:00:10]} Nc6 {[%clk 01:33:35]} {[%emt 00:05:29]} 13.
Ne5 {[%clk 01:23:31]} {[%emt 00:06:39]} Nxe5 {[%clk 01:27:01]} {[%emt
00:07:04]} 14. dxe5 {[%clk 01:23:54]} {[%emt 00:00:06]} Ng4 {[%clk 01:27:18]}
{[%emt 00:00:12]} 15. Qf5 {[%clk 01:24:18]} {[%emt 00:00:07]} Qc8 {[%clk
01:27:07]} {[%emt 00:00:41]} 16. Qxc8 {[%clk 01:20:23]} {[%emt 00:04:26]} Rfxc8
{[%clk 01:27:21]} {[%emt 00:00:16]} 17. Nxd5 {[%clk 01:20:28]} {[%emt
00:00:24]} Rd8 {[%clk 01:27:43]} {[%emt 00:00:08]} 18. Rfd1 {[%clk 00:44:40]}
{[%emt 00:36:18]} Nxe5 {[%clk 01:27:17]} {[%emt 00:00:57]} 19. f4 {[%clk
00:44:52]} {[%emt 00:00:17]} Nc6 {[%clk 01:26:25]} {[%emt 00:01:22]} 20. Kf2
{[%clk 00:44:44]} {[%emt 00:00:37]} Kf8 {[%clk 01:26:16]} {[%emt 00:00:40]} 21.
a3 {[%clk 00:43:35]} {[%emt 00:01:40]} Ne7 {[%clk 01:25:04]} {[%emt 00:01:41]}
22. Nxe7 {[%clk 00:37:59]} {[%emt 00:06:05]} Kxe7 {[%clk 01:25:25]} {[%emt
00:00:10]} 23. e4 {[%clk 00:38:12]} {[%emt 00:00:17]} f6 {[%clk 01:22:43]}
{[%emt 00:03:12]} 24. Ke3 {[%clk 00:30:52]} {[%emt 00:07:50]} Rxd1 {[%clk
01:20:02]} {[%emt 00:03:12]} 25. Rxd1 {[%clk 00:31:09]} {[%emt 00:00:13]} Rd8
{[%clk 01:20:19]} {[%emt 00:00:14]} 26. Rxd8 {[%clk 00:28:33]} {[%emt
00:03:05]} Kxd8 {[%clk 01:20:40]} {[%emt 00:00:10]} 27. Kd3 {[%clk 00:28:05]}
{[%emt 00:00:57]} b5 {[%clk 01:20:56]} {[%emt 00:00:15]} 28. a4 {[%clk
00:26:55]} {[%emt 00:01:39]} a6 {[%clk 01:21:12]} {[%emt 00:00:14]} 29. g4
{[%clk 00:23:25]} {[%emt 00:04:00]} Ke7 {[%clk 01:18:38]} {[%emt 00:03:03]} 30.
axb5 {[%clk 00:23:01]} {[%emt 00:00:55]} axb5 {[%clk 01:18:58]} {[%emt
00:00:10]} 31. h4 {[%clk 00:23:19]} {[%emt 00:00:12]} h5 {[%clk 01:14:08]}
{[%emt 00:05:20]} 32. gxh5 {[%clk 00:21:54]} {[%emt 00:01:55]} Ke6 {[%clk
01:14:26]} {[%emt 00:00:12]} 33. b3 {[%clk 00:16:47]} {[%emt 00:05:37]} f5
{[%clk 01:13:24]} {[%emt 00:01:32]} 34. e5 {[%clk 00:16:24]} {[%emt 00:00:53]}
Kd5 {[%clk 01:13:43]} {[%emt 00:00:12]} 35. Kc3 {[%clk 00:16:35]} {[%emt
00:00:18]} Ke6 {[%clk 01:14:07]} {[%emt 00:00:07]} 36. Kd3 {[%clk 00:14:29]}
{[%emt 00:02:36]} Kd5 {[%clk 01:14:25]} {[%emt 00:00:11]} 37. Ke3 {[%clk
00:12:20]} {[%emt 00:02:39]} Ke6 {[%clk 01:14:44]} {[%emt 00:00:11]} 38. Kf3
{[%clk 00:11:15]} {[%emt 00:01:35]} Kd5 {[%clk 01:15:04]} {[%emt 00:00:10]} 39.
Ke3 {[%clk 00:11:43]} {[%emt 00:00:02]} Ke6 {[%clk 01:15:21]} {[%emt 00:00:13]}
40. Kd2 {[%clk 00:12:04]} {[%emt 00:00:09]} 1/2-1/2

[Event "Masters Tournament (MTO)"]
[Site "Biel, Switzerland"]
[Date "2026.07.13"]
[Round "1.28"]
[White "Magnussen, Petur Gardar"]
[Black "Georgescu, Lena"]
[Result "0-1"]
[TimeControl "100+30+30sec/move"]
[WhiteTitle "-"]
[BlackTitle "-"]
[WhiteFideId "7203802"]
[BlackFideId "1331973"]
[WhiteElo "1957"]
[BlackElo "2253"]

1. e4 {[%clk 01:40:54]} {[%emt 00:00:06]} e5 {[%clk 01:40:50]} {[%emt
00:00:12]} 2. Nf3 {[%clk 01:41:14]} {[%emt 00:00:09]} Nc6 {[%clk 01:41:16]}
{[%emt 00:00:04]} 3. Bc4 {[%clk 01:41:26]} {[%emt 00:00:18]} Nf6 {[%clk
01:41:22]} {[%emt 00:00:24]} 4. d3 {[%clk 01:41:37]} {[%emt 00:00:19]} Bc5
{[%clk 01:41:39]} {[%emt 00:00:13]} 5. c3 {[%clk 01:41:19]} {[%emt 00:00:48]}
d6 {[%clk 01:41:49]} {[%emt 00:00:20]} 6. Nbd2 {[%clk 01:41:00]} {[%emt
00:00:48]} a5 {[%clk 01:41:20]} {[%emt 00:01:00]} 7. a4 {[%clk 01:40:18]}
{[%emt 00:01:12]} O-O {[%clk 01:41:33]} {[%emt 00:00:16]} 8. O-O {[%clk
01:39:12]} {[%emt 00:01:36]} Ba7 {[%clk 01:41:04]} {[%emt 00:00:59]} 9. Re1
{[%clk 01:37:15]} {[%emt 00:02:27]} Be6 {[%clk 01:22:55]} {[%emt 00:18:40]} 10.
Bb5 {[%clk 01:29:06]} {[%emt 00:08:39]} Ng4 {[%clk 01:21:14]} {[%emt 00:02:10]}
11. Re2 {[%clk 01:23:11]} {[%emt 00:06:25]} f5 {[%clk 01:20:52]} {[%emt
00:00:52]} 12. Nc4 {[%clk 01:14:45]} {[%emt 00:08:56]} fxe4 {[%clk 01:10:26]}
{[%emt 00:10:56]} 13. dxe4 {[%clk 01:13:02]} {[%emt 00:02:13]} Ne7 {[%clk
00:52:34]} {[%emt 00:18:22]} 14. Ne3 {[%clk 00:51:51]} {[%emt 00:21:41]} Ng6
{[%clk 00:52:05]} {[%emt 00:00:59]} 15. Bc4 {[%clk 00:42:36]} {[%emt 00:09:45]}
Bxc4 {[%clk 00:52:00]} {[%emt 00:00:35]} 16. Nxc4 {[%clk 00:42:59]} {[%emt
00:00:07]} Nh4 {[%clk 00:48:32]} {[%emt 00:03:58]} 17. Ne3 {[%clk 00:35:57]}
{[%emt 00:07:32]} Bxe3 {[%clk 00:43:10]} {[%emt 00:05:52]} 18. Bxe3 {[%clk
00:35:40]} {[%emt 00:00:47]} Nxf3+ {[%clk 00:34:14]} {[%emt 00:09:26]} 19. gxf3
{[%clk 00:35:53]} {[%emt 00:00:16]} Rxf3 {[%clk 00:31:29]} {[%emt 00:03:16]} 20.
Rc2 {[%clk 00:27:06]} {[%emt 00:09:17]} Nxe3 {[%clk 00:30:16]} {[%emt
00:01:43]} 21. fxe3 {[%clk 00:25:07]} {[%emt 00:02:29]} Qg5+ {[%clk 00:30:02]}
{[%emt 00:00:44]} 22. Kh1 {[%clk 00:24:49]} {[%emt 00:00:47]} Raf8 {[%clk
00:29:38]} {[%emt 00:00:55]} 0-1

[Event "Masters Tournament (MTO)"]
[Site "Biel, Switzerland"]
[Date "2026.07.13"]
[Round "1.29"]
[White "Dauth, Benjamin"]
[Black "Tan, Jimmy"]
[Result "1-0"]
[TimeControl "100+30+30sec/move"]
[WhiteTitle "-"]
[BlackTitle "-"]
[WhiteFideId "4688104"]
[BlackFideId "129057499"]
[WhiteElo "2247"]
[BlackElo "1953"]

1. e4 {[%clk 01:40:53]} {[%emt 00:00:03]} c6 {[%clk 01:40:53]} {[%emt
00:00:07]} 2. d4 {[%clk 01:41:18]} {[%emt 00:00:05]} d5 {[%clk 01:41:19]}
{[%emt 00:00:05]} 3. exd5 {[%clk 01:41:42]} {[%emt 00:00:05]} cxd5 {[%clk
01:41:45]} {[%emt 00:00:04]} 4. Bd3 {[%clk 01:42:05]} {[%emt 00:00:06]} Nc6
{[%clk 01:42:10]} {[%emt 00:00:05]} 5. c3 {[%clk 01:42:30]} {[%emt 00:00:05]}
Nf6 {[%clk 01:42:36]} {[%emt 00:00:04]} 6. Ne2 {[%clk 01:42:55]} {[%emt
00:00:05]} Bg4 {[%clk 01:42:32]} {[%emt 00:00:34]} 7. Qb3 {[%clk 01:43:16]}
{[%emt 00:00:09]} Qd7 {[%clk 01:41:48]} {[%emt 00:01:15]} 8. Ng3 {[%clk
01:43:28]} {[%emt 00:00:18]} e6 {[%clk 01:38:36]} {[%emt 00:03:42]} 9. Bg5
{[%clk 01:43:46]} {[%emt 00:00:11]} Bd6 {[%clk 01:30:25]} {[%emt 00:08:42]} 10.
f3 {[%clk 01:43:16]} {[%emt 00:01:00]} Bxg3+ {[%clk 01:24:42]} {[%emt
00:06:12]} 11. hxg3 {[%clk 01:43:40]} {[%emt 00:00:06]} Bf5 {[%clk 01:24:54]}
{[%emt 00:00:18]} 12. Bxf5 {[%clk 01:44:03]} {[%emt 00:00:07]} exf5 {[%clk
01:25:20]} {[%emt 00:00:04]} 13. Bxf6 {[%clk 01:44:22]} {[%emt 00:00:11]} gxf6
{[%clk 01:25:47]} {[%emt 00:00:03]} 14. Nd2 {[%clk 01:44:45]} {[%emt 00:00:06]}
O-O-O {[%clk 01:24:21]} {[%emt 00:01:57]} 15. O-O-O {[%clk 01:41:46]} {[%emt
00:03:30]} Rhg8 {[%clk 01:22:39]} {[%emt 00:02:11]} 16. Nf1 {[%clk 01:41:43]}
{[%emt 00:00:33]} f4 {[%clk 01:20:19]} {[%emt 00:02:50]} 17. Rxh7 {[%clk
01:40:42]} {[%emt 00:01:31]} fxg3 {[%clk 01:12:44]} {[%emt 00:08:05]} 18. Qc2
{[%clk 01:34:58]} {[%emt 00:06:14]} Rde8 {[%clk 01:05:54]} {[%emt 00:07:20]} 19.
Rh5 {[%clk 01:32:47]} {[%emt 00:02:41]} Ne7 {[%clk 00:58:32]} {[%emt 00:07:53]}
20. Ne3 {[%clk 01:31:06]} {[%emt 00:02:10]} Rg5 {[%clk 00:47:01]} {[%emt
00:12:01]} 21. Rxg5 {[%clk 01:28:48]} {[%emt 00:02:49]} fxg5 {[%clk 00:47:29]}
{[%emt 00:00:01]} 22. Ng4 {[%clk 01:29:01]} {[%emt 00:00:17]} Rh8 {[%clk
00:38:42]} {[%emt 00:09:17]} 23. Re1 {[%clk 01:27:12]} {[%emt 00:02:19]} f5
{[%clk 00:33:28]} {[%emt 00:05:44]} 24. Ne5 {[%clk 01:26:17]} {[%emt 00:01:25]}
Qc7 {[%clk 00:30:05]} {[%emt 00:03:53]} 25. Ng6 {[%clk 01:22:44]} {[%emt
00:04:02]} Nxg6 {[%clk 00:28:48]} {[%emt 00:01:48]} 26. Qxf5+ {[%clk 01:23:07]}
{[%emt 00:00:06]} Kb8 {[%clk 00:25:30]} {[%emt 00:03:50]} 27. Qxg6 {[%clk
01:23:22]} {[%emt 00:00:15]} Qf4+ {[%clk 00:24:55]} {[%emt 00:01:04]} 28. Kc2
{[%clk 01:23:27]} {[%emt 00:00:25]} a6 {[%clk 00:19:02]} {[%emt 00:06:24]} 29.
Re7 {[%clk 01:22:29]} {[%emt 00:01:27]} Rh2 {[%clk 00:15:17]} {[%emt 00:04:16]}
30. Qb6 {[%clk 01:14:45]} {[%emt 00:08:14]} Qf5+ {[%clk 00:12:13]} {[%emt
00:03:34]} 31. Kb3 {[%clk 01:14:59]} {[%emt 00:00:16]} Qc8 {[%clk 00:12:30]}
{[%emt 00:00:13]} 32. Qd6+ {[%clk 01:15:15]} {[%emt 00:00:13]} Ka7 {[%clk
00:12:13]} {[%emt 00:00:47]} 33. Qxg3 {[%clk 01:14:07]} {[%emt 00:01:38]} Qc4+
{[%clk 00:11:19]} {[%emt 00:01:24]} 34. Ka3 {[%clk 01:14:18]} {[%emt 00:00:20]}
Rh6 {[%clk 00:07:01]} {[%emt 00:04:47]} 35. Qc7 {[%clk 01:13:23]} {[%emt
00:01:25]} Qb5 {[%clk 00:05:01]} {[%emt 00:02:30]} 36. Qc5+ {[%clk 01:13:17]}
{[%emt 00:00:36]} Qb6 {[%clk 00:02:29]} {[%emt 00:03:03]} 37. Re5 {[%clk
01:12:22]} {[%emt 00:01:24]} g4 {[%clk 00:02:04]} {[%emt 00:00:55]} 38. fxg4
{[%clk 01:11:51]} {[%emt 00:01:01]} Rh2 {[%clk 00:01:10]} {[%emt 00:01:23]} 39.
Qxb6+ {[%clk 01:12:13]} {[%emt 00:00:09]} Kxb6 {[%clk 00:01:37]} {[%emt
00:00:04]} 40. g3 {[%clk 01:12:37]} {[%emt 00:00:05]} Kc6 {[%clk 00:01:46]}
{[%emt 00:00:21]} 41. Re6+ {[%clk 01:12:18]} {[%emt 00:00:49]} Kd7 {[%clk
00:02:08]} {[%emt 00:00:09]} 42. Rf6 {[%clk 01:12:38]} {[%emt 00:00:09]} Rg2
{[%clk 00:02:19]} {[%emt 00:00:20]} 43. Rf7+ {[%clk 01:12:50]} {[%emt
00:00:17]} Kc6 {[%clk 00:02:42]} {[%emt 00:00:08]} 44. Rf3 {[%clk 01:13:12]}
{[%emt 00:00:07]} Rh2 {[%clk 00:02:56]} {[%emt 00:00:16]} 45. g5 {[%clk
01:13:35]} {[%emt 00:00:07]} Rh5 {[%clk 00:03:18]} {[%emt 00:00:08]} 46. Rf5
{[%clk 01:13:48]} {[%emt 00:00:17]} Kd6 {[%clk 00:03:32]} {[%emt 00:00:16]} 47.
g4 {[%clk 01:14:04]} {[%emt 00:00:14]} Rh4 {[%clk 00:03:56]} {[%emt 00:00:07]}
48. Rf4 {[%clk 01:14:18]} {[%emt 00:00:15]} Rh8 {[%clk 00:04:00]} {[%emt
00:00:26]} 49. g6 {[%clk 01:14:00]} {[%emt 00:00:47]} Rg8 {[%clk 00:03:50]}
{[%emt 00:00:41]} 50. Rf6+ {[%clk 01:14:21]} {[%emt 00:00:09]} Kd7 {[%clk
00:04:04]} {[%emt 00:00:16]} 51. g5 {[%clk 01:14:41]} {[%emt 00:00:10]} Kc7
{[%clk 00:03:43]} {[%emt 00:00:52]} 52. Rf7+ {[%clk 01:14:49]} {[%emt
00:00:22]} Kc6 {[%clk 00:03:36]} {[%emt 00:00:37]} 53. g7 {[%clk 01:15:00]}
{[%emt 00:00:18]} Kb6 {[%clk 00:03:48]} {[%emt 00:00:19]} 54. g6 {[%clk
01:15:24]} {[%emt 00:00:05]} Kc6 {[%clk 00:04:11]} {[%emt 00:00:08]} 55. Ka4
{[%clk 01:15:32]} {[%emt 00:00:21]} Kb6 {[%clk 00:04:36]} {[%emt 00:00:06]} 56.
Kb4 {[%clk 01:15:56]} {[%emt 00:00:06]} Kc6 {[%clk 00:04:47]} {[%emt 00:00:18]}
57. Ka5 {[%clk 01:16:20]} {[%emt 00:00:06]} b6+ {[%clk 00:03:06]} {[%emt
00:02:12]} 58. Kxa6 {[%clk 01:16:06]} {[%emt 00:00:43]} Ra8+ {[%clk 00:03:12]}
{[%emt 00:00:24]} 59. Ra7 {[%clk 01:16:27]} {[%emt 00:00:09]} Rg8 {[%clk
00:03:40]} {[%emt 00:00:02]} 60. a4 {[%clk 01:16:27]} {[%emt 00:00:30]} 1-0

[Event "Masters Tournament (MTO)"]
[Site "Biel, Switzerland"]
[Date "2026.07.13"]
[Round "1.30"]
[White "Heitmann, Erik"]
[Black "Hasenohr, Benedict"]
[Result "1-0"]
[TimeControl "100+30+30sec/move"]
[WhiteTitle "-"]
[BlackTitle "-"]
[WhiteFideId "34608940"]
[BlackFideId "1303309"]
[WhiteElo "1949"]
[BlackElo "2247"]

1. d4 {[%clk 01:40:59]} d5 {[%clk 01:40:55]} {[%emt 00:00:03]} 2. c4 {[%clk
01:41:22]} {[%emt 00:00:07]} c6 {[%clk 01:41:20]} {[%emt 00:00:05]} 3. e3
{[%clk 01:41:46]} {[%emt 00:00:06]} e6 {[%clk 01:41:25]} {[%emt 00:00:24]} 4.
Nf3 {[%clk 01:42:03]} {[%emt 00:00:13]} f5 {[%clk 01:40:15]} {[%emt 00:01:40]}
5. g3 {[%clk 01:41:45]} {[%emt 00:00:48]} Bd6 {[%clk 01:39:09]} {[%emt
00:01:36]} 6. Bg2 {[%clk 01:42:10]} {[%emt 00:00:06]} Nd7 {[%clk 01:36:45]}
{[%emt 00:02:54]} 7. b3 {[%clk 01:41:56]} {[%emt 00:00:43]} Nh6 {[%clk
01:33:35]} {[%emt 00:03:39]} 8. O-O {[%clk 01:41:27]} {[%emt 00:01:00]} Qe7
{[%clk 01:33:54]} {[%emt 00:00:11]} 9. Bb2 {[%clk 01:40:27]} {[%emt 00:01:30]}
Nf7 {[%clk 01:30:39]} {[%emt 00:03:45]} 10. Qc1 {[%clk 01:37:10]} {[%emt
00:03:48]} g5 {[%clk 01:29:37]} {[%emt 00:01:32]} 11. Ba3 {[%clk 01:35:59]}
{[%emt 00:01:41]} g4 {[%clk 01:30:02]} {[%emt 00:00:04]} 12. Bxd6 {[%clk
01:34:15]} {[%emt 00:02:14]} Nxd6 {[%clk 01:29:24]} {[%emt 00:01:08]} 13. Nh4
{[%clk 01:32:23]} {[%emt 00:02:22]} Nf8 {[%clk 01:16:32]} {[%emt 00:13:21]} 14.
cxd5 {[%clk 01:26:02]} {[%emt 00:06:53]} exd5 {[%clk 01:12:53]} {[%emt
00:04:08]} 15. Nc3 {[%clk 01:11:41]} {[%emt 00:14:51]} Ng6 {[%clk 00:54:22]}
{[%emt 00:19:02]} 16. Bxd5 {[%clk 01:11:49]} {[%emt 00:00:22]} Nxh4 {[%clk
00:54:43]} {[%emt 00:00:08]} 17. gxh4 {[%clk 01:12:00]} {[%emt 00:00:19]} cxd5
{[%clk 00:54:05]} {[%emt 00:01:08]} 18. Nxd5 {[%clk 01:12:22]} {[%emt
00:00:09]} Qxh4 {[%clk 00:53:29]} {[%emt 00:01:05]} 19. Nc7+ {[%clk 01:10:19]}
{[%emt 00:02:33]} Kf7 {[%clk 00:53:24]} {[%emt 00:00:35]} 20. Nxa8 {[%clk
01:10:09]} {[%emt 00:00:40]} Bd7 {[%clk 00:53:25]} {[%emt 00:00:28]} 21. Qc5
{[%clk 01:05:01]} {[%emt 00:05:39]} Ne4 {[%clk 00:44:40]} {[%emt 00:09:15]} 22.
Qd5+ {[%clk 01:04:25]} {[%emt 00:01:06]} Be6 {[%clk 00:44:17]} {[%emt
00:00:52]} 23. Qxb7+ {[%clk 01:03:30]} {[%emt 00:01:26]} Kf6 {[%clk 00:43:37]}
{[%emt 00:01:10]} 24. Nc7 {[%clk 00:26:32]} {[%emt 00:37:28]} Nd2 {[%clk
00:28:03]} {[%emt 00:16:04]} 25. Qg2 {[%clk 00:26:40]} {[%emt 00:00:21]} Nf3+
{[%clk 00:12:57]} {[%emt 00:15:36]} 26. Kh1 {[%clk 00:24:50]} {[%emt 00:02:20]}
Bf7 {[%clk 00:13:23]} {[%emt 00:00:04]} 27. Qg3 {[%clk 00:24:02]} {[%emt
00:01:18]} Rc8 {[%clk 00:04:20]} {[%emt 00:09:34]} 28. Rfc1 {[%clk 00:21:16]}
{[%emt 00:03:16]} Qh3 {[%clk 00:02:34]} {[%emt 00:02:17]} 29. Rc6+ {[%clk
00:15:24]} {[%emt 00:06:21]} Kg7 {[%clk 00:02:20]} {[%emt 00:00:44]} 30. Rc5
{[%clk 00:14:24]} {[%emt 00:01:29]} h5 {[%clk 00:00:40]} {[%emt 00:02:11]} 31.
Qd6 {[%clk 00:10:38]} {[%emt 00:04:06]} h4 {[%clk 00:00:37]} {[%emt 00:00:43]}
32. Rxf5 {[%clk 00:08:29]} {[%emt 00:02:38]} Bg6 {[%clk 00:01:02]} {[%emt
00:00:05]} 33. Ne6+ {[%clk 00:06:45]} {[%emt 00:02:14]} Kh6 {[%clk 00:00:42]}
{[%emt 00:00:51]} 34. Qf4+ {[%clk 00:04:15]} {[%emt 00:03:00]} Kh7 {[%clk
00:01:07]} {[%emt 00:00:05]} 35. Rf7+ {[%clk 00:03:54]} {[%emt 00:00:50]} Bxf7
{[%clk 00:01:32]} {[%emt 00:00:06]} 36. Qxf7+ {[%clk 00:04:19]} {[%emt
00:00:05]} Kh6 {[%clk 00:01:57]} {[%emt 00:00:05]} 37. Qg7+ {[%clk 00:04:30]}
{[%emt 00:00:17]} Kh5 {[%clk 00:02:22]} {[%emt 00:00:07]} 38. Qh7# {[%clk
00:04:50]} {[%emt 00:00:08]} 1-0

[Event "Masters Tournament (MTO)"]
[Site "Biel, Switzerland"]
[Date "2026.07.13"]
[Round "1.31"]
[White "Matsumura, Cocoro"]
[Black "Von Burg, Carl Alexander"]
[Result "1-0"]
[TimeControl "100+30+30sec/move"]
[WhiteTitle "-"]
[BlackTitle "-"]
[WhiteFideId "36087114"]
[BlackFideId "1352458"]
[WhiteElo "2225"]
[BlackElo "1947"]

1. e4 {[%clk 01:40:56]} e5 {[%clk 01:40:54]} {[%emt 00:00:07]} 2. Nf3 {[%clk
01:41:22]} {[%emt 00:00:04]} Nc6 {[%clk 01:41:19]} {[%emt 00:00:05]} 3. Bb5
{[%clk 01:41:47]} {[%emt 00:00:05]} Nf6 {[%clk 01:41:43]} {[%emt 00:00:06]} 4.
O-O {[%clk 01:42:11]} {[%emt 00:00:05]} Nxe4 {[%clk 01:42:08]} {[%emt
00:00:05]} 5. Re1 {[%clk 01:42:38]} {[%emt 00:00:04]} Nd6 {[%clk 01:42:29]}
{[%emt 00:00:09]} 6. Nxe5 {[%clk 01:43:03]} {[%emt 00:00:04]} Be7 {[%clk
01:42:51]} {[%emt 00:00:08]} 7. Bf1 {[%clk 01:43:21]} {[%emt 00:00:12]} Nxe5
{[%clk 01:43:07]} {[%emt 00:00:14]} 8. Rxe5 {[%clk 01:43:46]} {[%emt 00:00:06]}
O-O {[%clk 01:43:28]} {[%emt 00:00:09]} 9. d4 {[%clk 01:44:12]} {[%emt
00:00:04]} Bf6 {[%clk 01:43:34]} {[%emt 00:00:24]} 10. Re1 {[%clk 01:44:37]}
{[%emt 00:00:05]} Re8 {[%clk 01:43:27]} {[%emt 00:00:38]} 11. Bf4 {[%clk
01:44:57]} {[%emt 00:00:10]} Rxe1 {[%clk 01:42:49]} {[%emt 00:01:08]} 12. Qxe1
{[%clk 01:45:14]} {[%emt 00:00:13]} Ne8 {[%clk 01:40:28]} {[%emt 00:02:51]} 13.
Bd3 {[%clk 01:35:11]} {[%emt 00:10:33]} d5 {[%clk 01:37:23]} {[%emt 00:03:35]}
14. Be5 {[%clk 01:27:02]} {[%emt 00:08:40]} Be6 {[%clk 01:29:13]} {[%emt
00:08:39]} 15. Nc3 {[%clk 01:24:07]} {[%emt 00:03:25]} c6 {[%clk 01:20:34]}
{[%emt 00:09:09]} 16. Ne2 {[%clk 01:17:04]} {[%emt 00:07:33]} Qd7 {[%clk
01:16:57]} {[%emt 00:04:05]} 17. Ng3 {[%clk 01:15:47]} {[%emt 00:01:50]} Bh4
{[%clk 00:52:27]} {[%emt 00:24:58]} 18. Qb4 {[%clk 00:57:35]} {[%emt 00:18:44]}
Be7 {[%clk 00:48:39]} {[%emt 00:04:16]} 19. Qd2 {[%clk 00:50:21]} {[%emt
00:07:45]} f6 {[%clk 00:38:28]} {[%emt 00:10:41]} 20. Bf4 {[%clk 00:49:58]}
{[%emt 00:00:53]} g5 {[%clk 00:36:43]} {[%emt 00:02:15]} 21. Be3 {[%clk
00:49:36]} {[%emt 00:00:52]} Ng7 {[%clk 00:36:52]} {[%emt 00:00:20]} 22. Re1
{[%clk 00:43:31]} {[%emt 00:06:36]} Bd6 {[%clk 00:31:59]} {[%emt 00:05:23]} 23.
c3 {[%clk 00:26:55]} {[%emt 00:17:07]} h5 {[%clk 00:28:44]} {[%emt 00:03:44]}
24. h4 {[%clk 00:22:05]} {[%emt 00:05:20]} gxh4 {[%clk 00:27:36]} {[%emt
00:01:38]} 25. Ne2 {[%clk 00:19:11]} {[%emt 00:03:24]} Bf5 {[%clk 00:23:32]}
{[%emt 00:04:34]} 26. Bf4 {[%clk 00:10:51]} {[%emt 00:08:50]} Re8 {[%clk
00:19:33]} {[%emt 00:04:28]} 27. Bxd6 {[%clk 00:10:15]} {[%emt 00:01:08]} Qxd6
{[%clk 00:19:59]} {[%emt 00:00:03]} 28. Bxf5 {[%clk 00:07:28]} {[%emt
00:03:17]} Nxf5 {[%clk 00:20:25]} {[%emt 00:00:03]} 29. Rd1 {[%clk 00:05:55]}
{[%emt 00:02:04]} Re4 {[%clk 00:19:33]} {[%emt 00:01:21]} 30. Qd3 {[%clk
00:05:50]} {[%emt 00:00:37]} Qe6 {[%clk 00:18:46]} {[%emt 00:01:15]} 31. Kf1
{[%clk 00:05:30]} {[%emt 00:00:52]} Qe8 {[%clk 00:13:07]} {[%emt 00:06:08]} 32.
Qf3 {[%clk 00:05:21]} {[%emt 00:00:39]} Qg6 {[%clk 00:12:46]} {[%emt 00:00:50]}
33. c4 {[%clk 00:04:10]} {[%emt 00:01:43]} Qg4 {[%clk 00:11:57]} {[%emt
00:01:18]} 34. cxd5 {[%clk 00:04:30]} {[%emt 00:00:10]} cxd5 {[%clk 00:12:04]}
{[%emt 00:00:23]} 35. Qd3 {[%clk 00:03:58]} {[%emt 00:01:03]} Re7 {[%clk
00:09:00]} {[%emt 00:03:33]} 36. Rc1 {[%clk 00:03:58]} {[%emt 00:00:32]} Nd6
{[%emt 00:02:44]} 37. Rc5 {[%clk 00:03:04]} Rg7 {[%clk 00:04:59]} {[%emt
00:03:39]} 38. Qh3 {[%clk 00:03:03]} {[%emt 00:00:31]} Qe4 {[%clk 00:04:42]}
{[%emt 00:00:46]} 39. f3 {[%clk 00:03:05]} {[%emt 00:00:30]} Qe3 {[%clk
00:04:04]} {[%emt 00:01:07]} 40. Rc3 {[%clk 00:03:16]} {[%emt 00:00:20]} Qe7
{[%clk 00:00:56]} {[%emt 00:03:25]} 41. Qxh4 {[%clk 00:30:28]} {[%emt
00:03:30]} Nc4 {[%clk 00:25:39]} {[%emt 00:05:45]} 42. Qf2 {[%clk 00:25:51]}
{[%emt 00:05:10]} Qe6 {[%clk 00:15:46]} {[%emt 00:10:21]} 43. b3 {[%clk
00:22:22]} {[%emt 00:04:00]} Nd6 {[%clk 00:15:08]} {[%emt 00:01:08]} 44. Nf4
{[%clk 00:21:10]} {[%emt 00:01:42]} Qf5 {[%clk 00:15:28]} {[%emt 00:00:09]} 45.
Qe3 {[%clk 00:21:19]} {[%emt 00:00:22]} Kh7 {[%clk 00:13:55]} {[%emt 00:02:01]}
46. Rc5 {[%clk 00:18:04]} {[%emt 00:03:47]} Qb1+ {[%clk 00:13:40]} {[%emt
00:00:45]} 47. Qe1 {[%clk 00:15:51]} {[%emt 00:02:44]} Qf5 {[%clk 00:09:16]}
{[%emt 00:04:53]} 48. Qe3 {[%clk 00:15:15]} {[%emt 00:01:06]} Qb1+ {[%clk
00:09:18]} {[%emt 00:00:28]} 49. Kf2 {[%clk 00:11:56]} {[%emt 00:03:49]} Qxa2+
{[%clk 00:05:43]} {[%emt 00:04:05]} 50. Ne2 {[%clk 00:11:59]} {[%emt 00:00:27]}
Qb1 {[%clk 00:01:27]} {[%emt 00:04:44]} 51. Rxd5 {[%clk 00:10:08]} {[%emt
00:02:22]} Nf5 {[%clk 00:01:43]} {[%emt 00:00:13]} 52. Qe6 {[%clk 00:07:06]}
{[%emt 00:03:33]} Kg6 {[%clk 00:01:51]} {[%emt 00:00:23]} 53. Nf4+ {[%clk
00:05:41]} {[%emt 00:01:55]} Kg5 {[%clk 00:02:19]} {[%emt 00:00:01]} 54. Nh3+
{[%clk 00:04:30]} {[%emt 00:01:42]} Kg6 {[%clk 00:02:43]} {[%emt 00:00:06]} 55.
Qe8+ {[%clk 00:04:15]} {[%emt 00:00:44]} Kh6 {[%clk 00:02:24]} {[%emt
00:00:49]} 56. Qh8+ {[%clk 00:03:39]} {[%emt 00:01:06]} Rh7 {[%clk 00:02:51]}
{[%emt 00:00:02]} 57. Qxf6# {[%clk 00:04:01]} {[%emt 00:00:10]} Rf7 {[%emt
00:00:10]} 58. Qh8+ Kg6 59. Nf4+ {[%clk 00:04:01]} {[%emt 00:00:04]} 1-0